[Event "DSB-Kader-Challenge 2021"]
[Site "Magdeburg"]
[Date "2021.04.06"]
[Round "2.1"]
[White "Fridman, Daniel"]
[Black "Wagner, Dennis"]
[Result "1/2-1/2"]
[ECO "D33"]
[WhiteElo "2601"]
[BlackElo "2581"]
[Annotator "ChessBase"]
[PlyCount "80"]
[EventDate "2021.04.05"]
[EventType "tourn"]
[EventCountry "GER"]
[SourceTitle "playchess.com"]
[Source "ChessBase"]
[SourceQuality "1"]
[TimeControl "40/5400+30:1800+30"]

1. Nf3 {[%emt 0:00:00]} c5 {[%emt 0:00:00]} 2. c4 {[%emt 0:00:28]} Nf6 {[%emt 0:00:00]} 3. Nc3 {[%emt 0:00:08]} e6 {[%emt 0:00:07]} 4. g3 {[%emt 0:00:46]} d5 {[%emt 0:00:09]} 5. cxd5 {[%emt 0:00:06]} exd5 {[%emt 0:00:06]} 6. d4 {[%emt 0:00:05]} Nc6 {[%emt 0:00:09]} 7. Bg2 {[%emt 0:00:06]} cxd4 {[%emt 0:00:10]} 8. Nxd4 {[%emt 0:00:07]} Bc5 {[%emt 0:00:07]} 9. Nxc6 {[%emt 0:00:59]} bxc6 {[%emt 0:00:07]} 10. O-O {[%emt 0:00:07]} O-O {[%emt 0:00:12]} 11. Na4 {[%emt 0:00:04]} Bb6 {[%emt 0:00:10]} 12. Qc2 {[%emt 0:00:05]} Bd7 {[%emt 0:00:07]} 13. Nxb6 {[%emt 0:00:54]} axb6 {[%emt 0:00:06]} 14. a4 {[%emt 0:00:19]} Re8 {[%emt 0:00:07]} 15. b4 {[%emt 0:00:15]} Ne4 {[%emt 0:00:28]} 16. Be3 {[%emt 0:02:46]} h5 {[%emt 0:00:29]} 17. Rfd1 {[%emt 0:05:11]} h4 {[%emt 0:00:17]} 18. Ra3 {[%emt 0:13:56]} Qe7 {[%emt 0:17:39]} 19. Bxe4 {[%emt 0:10:56]} Qxe4 {[%emt 0:00:27]} 20. Qxe4 {[%emt 0:00:32]} Rxe4 {[%emt 0:00:06]} 21. Rd4 {[%emt 0:00:12]} Rxd4 {[%emt 0:06:13]} 22. Bxd4 {[%emt 0:03:31]} c5 {[%emt 0:00:04]} 23. bxc5 {[%emt 0:00:08]} bxc5 {[%emt 0:00:05]} 24. Bxc5 {[%emt 0:00:07]} Rxa4 {[%emt 0:00:14]} 25. Rxa4 {[%emt 0:00:06]} Bxa4 {[%emt 0:00:04]} 26. gxh4 {[%emt 0:00:10]} Bb5 {[%emt 0:00:25]} 27. e3 {[%emt 0:00:07]} g6 {[%emt 0:01:20]} 28. Kg2 {[%emt 0:00:08]} f6 {[%emt 0:01:26]} 29. Kg3 {[%emt 0:00:09]} Kf7 {[%emt 0:00:09]} 30. Bd4 {[%emt 0:00:07]} Be2 {[%emt 0:00:55]} 31. Kf4 {[%emt 0:00:09]} Bd1 {[%emt 0:01:11]} 32. f3 {[%emt 0:00:07]} Ba4 {[%emt 0:00:21]} 33. h3 {[%emt 0:00:08]} Bd7 {[%emt 0:00:12]} 34. h5 {[%emt 0:00:05]} gxh5 {[%emt 0:00:17]} 35. h4 {[%emt 0:00:05]} Kg6 {[%emt 0:00:10]} 36. e4 {[%emt 0:00:04]} dxe4 {[%emt 0:00:07]} 37. fxe4 {[%emt 0:00:03]} Bc6 {[%emt 0:00:09]} 38. Bc3 {[%emt 0:00:07]} Bb7 {[%emt 0:00:07]} 39. e5 {[%emt 0:00:06]} fxe5+ {[%emt 0:00:04]} 40. Bxe5 {[%emt 0:00:04]} Bc8 {[%emt 0:00:08]} 1/2-1/2

[Event "DSB-Kader-Challenge 2021"]
[Site "Magdeburg"]
[Date "2021.04.06"]
[Round "2.4"]
[White "Svane, Rasmus"]
[Black "Kollars, Dmitrij"]
[Result "1/2-1/2"]
[ECO "C84"]
[WhiteElo "2613"]
[BlackElo "2598"]
[Annotator "ChessBase"]
[PlyCount "153"]
[EventDate "2021.04.05"]
[EventType "tourn"]
[EventCountry "GER"]
[SourceTitle "playchess.com"]
[Source "ChessBase"]
[SourceQuality "1"]
[TimeControl "40/5400+30:1800+30"]

1. e4 {[%emt 0:00:00]} e5 {[%emt 0:01:28]} 2. Nf3 {[%emt 0:00:00]} Nc6 {[%emt 0:00:06]} 3. Bb5 {[%emt 0:00:00]} a6 {[%emt 0:00:15]} 4. Ba4 {[%emt 0:00:00]} Nf6 {[%emt 0:00:13]} 5. O-O {[%emt 0:00:00]} b5 {[%emt 0:01:14]} 6. Bb3 {[%emt 0:00:01]} Bb7 {[%emt 0:00:31]} 7. d3 {[%emt 0:08:43]} Be7 {[%emt 0:00:18]} 8. a4 {[%emt 0:05:20]} O-O {[%emt 0:00:45]} 9. Bg5 {[%emt 0:12:18]} d6 {[%emt 0:03:39]} 10. Nc3 {[%emt 0:07:59]} b4 {[%emt 0:08:03]} 11. Bxf6 {[%emt 0:01:30]} Bxf6 {[%emt 0:00:06]} 12. Nd5 {[%emt 0:00:07]} a5 {[%emt 0:05:40]} 13. c3 {[%emt 0:01:50]} bxc3 {[%emt 0:07:37]} 14. bxc3 {[%emt 0:00:13]} g6 {[%emt 0:01:02]} 15. Rb1 {[%emt 0:05:04]} Bg7 {[%emt 0:04:47]} 16. Ne3 {[%emt 0:04:06]} Bc8 {[%emt 0:04:26]} 17. Bc4 {[%emt 0:04:53]} Bd7 {[%emt 0:06:50]} 18. Qb3 {[%emt 0:00:17]} h6 {[%emt 0:04:15]} 19. Qa2 {[%emt 0:03:38]} Ne7 {[%emt 0:02:20]} 20. Rb2 {[%emt 0:05:52]} Nc8 {[%emt 0:09:27]} 21. Bd5 {[%emt 0:02:47]} Ra7 {[%emt 0:02:06]} 22. Rfb1 {[%emt 0:11:06]} Nb6 {[%emt 0:00:16]} 23. Bb3 {[%emt 0:01:02]} Qe7 {[%emt 0:11:02]} 24. Nd5 {[%emt 0:03:05]} Nxd5 {[%emt 0:00:05]} 25. Bxd5 {[%emt 0:00:06]} c6 {[%emt 0:00:52]} 26. Bc4 {[%emt 0:00:08]} Rc7 {[%emt 0:00:52]} 27. Rb7 {[%emt 0:03:23]} Bg4 {[%emt 0:01:54]} 28. Rxc7 {[%emt 0:00:09]} Qxc7 {[%emt 0:00:04]} 29. Nd2 {[%emt 0:01:24]} Bf6 {[%emt 0:07:05]} 30. h3 {[%emt 0:01:35]} Bc8 {[%emt 0:00:09]} 31. Qb3 {[%emt 0:01:11]} Kg7 {[%emt 0:03:51]} 32. Qb8 {[%emt 0:04:18]} Bd8 {[%emt 0:00:57]} 33. Qa8 {[%emt 0:03:19]} Bg5 {[%emt 0:05:12]} 34. Nf3 {[%emt 0:01:26]} Bf6 {[%emt 0:01:37]} 35. Qb8 {[%emt 0:04:21]} Qd8 {[%emt 0:02:22]} 36. Qa8 {[%emt 0:03:04]} Qc7 {[%emt 0:00:50]} 37. Qb8 {[%emt 0:00:04]} Qd8 {[%emt 0:00:50]} 38. Ba2 {[%emt 0:01:38]} Ba6 {[%emt 0:02:59]} 39. Qxd8 {[%emt 0:00:38]} Rxd8 {[%emt 0:01:58]} 40. c4 {[%emt 0:02:15]} Rd7 {[%emt 0:01:07]} 41. Rb6 {[%emt 0:02:17]} Bb7 {[%emt 0:02:17]} 42. c5 {[%emt 0:00:21]} dxc5 {[%emt 0:07:47]} 43. Kf1 {[%emt 0:01:04]} Kf8 {[%emt 0:04:58]} 44. Ke2 {[%emt 0:00:37]} Ke7 {[%emt 0:03:32]} 45. Nd2 {[%emt 0:01:01]} Kd6 {[%emt 0:01:34]} 46. Rb1 {[%emt 0:02:45]} Ba6 {[%emt 0:02:18]} 47. Bc4 {[%emt 0:02:22]} Bc8 {[%emt 0:00:05]} 48. Rb8 {[%emt 0:03:39]} Kc7 {[%emt 0:01:19]} 49. Ra8 {[%emt 0:02:12]} Bd8 {[%emt 0:05:52]} 50. Ra7+ {[%emt 0:09:30]} Bb7 {[%emt 0:00:11]} 51. Ba6 {[%emt 0:00:10]} Kb6 {[%emt 0:00:09]} 52. Rxb7+ {[%emt 0:00:04]} Rxb7 {[%emt 0:00:04]} 53. Bxb7 {[%emt 0:00:07]} Kxb7 {[%emt 0:00:02]} 54. Nc4 {[%emt 0:03:22]} Bc7 {[%emt 0:00:04]} 55. h4 {[%emt 0:03:56]} h5 {[%emt 0:00:50]} 56. Kf3 {[%emt 0:00:21]} Kc8 {[%emt 0:00:28]} 57. g4 {[%emt 0:00:48]} Kd7 {[%emt 0:00:23]} 58. gxh5 {[%emt 0:01:39]} gxh5 {[%emt 0:00:04]} 59. Ne3 {[%emt 0:00:09]} Ke6 {[%emt 0:01:42]} 60. Ke2 {[%emt 0:01:32]} Bd8 {[%emt 0:01:11]} 61. Nf5 {[%emt 0:00:10]} Kf6 {[%emt 0:01:02]} 62. Nd6 {[%emt 0:02:00]} Ke7 {[%emt 0:01:26]} 63. Nc4 {[%emt 0:01:15]} Ke6 {[%emt 0:00:06]} 64. Ke3 {[%emt 0:00:43]} Bc7 {[%emt 0:00:41]} 65. Kf3 {[%emt 0:00:19]} Bd8 {[%emt 0:00:59]} 66. Kg3 {[%emt 0:00:10]} Bc7 {[%emt 0:01:30]} 67. Kg2 {[%emt 0:00:26]} Bd8 {[%emt 0:00:10]} 68. Kh3 {[%emt 0:00:25]} f5 {[%emt 0:00:54]} 69. Kg3 {[%emt 0:00:56]} f4+ {[%emt 0:00:29]} 70. Kg2 {[%emt 0:00:13]} Bc7 {[%emt 0:00:27]} 71. Kf3 {[%emt 0:00:17]} Bd8 {[%emt 0:00:12]} 72. Ke2 {[%emt 0:00:11]} Bc7 {[%emt 0:00:20]} 73. Nd2 {[%emt 0:01:24]} Bd8 {[%emt 0:00:17]} 74. Nc4 {[%emt 0:00:56]} Bc7 {[%emt 0:00:08]} 75. f3 {[%emt 0:00:35]} Bd8 {[%emt 0:00:18]} 76. Kf1 {[%emt 0:00:22]} Bc7 {[%emt 0:00:07]} 77. Ke2 {[%emt 0:00:12]} 1/2-1/2

[Event "DSB-Kader-Challenge 2021"]
[Site "Magdeburg"]
[Date "2021.04.06"]
[Round "2.5"]
[White "Heimann, Andreas"]
[Black "Svane, Frederik"]
[Result "1/2-1/2"]
[ECO "B32"]
[WhiteElo "2606"]
[BlackElo "2421"]
[Annotator "ChessBase"]
[PlyCount "115"]
[EventDate "2021.04.05"]
[EventType "tourn"]
[EventCountry "GER"]
[SourceTitle "playchess.com"]
[Source "ChessBase"]
[SourceQuality "1"]
[TimeControl "40/5400+30:1800+30"]

1. e4 {[%emt 0:00:00]} c5 {[%emt 0:00:00]} 2. Nf3 {[%emt 0:00:00]} Nc6 {[%emt 0:00:00]} 3. d4 {[%emt 0:00:00]} cxd4 {[%emt 0:00:00]} 4. Nxd4 {[%emt 0:00:00]} e5 {[%emt 0:00:00]} 5. Nb5 {[%emt 0:00:04]} d6 {[%emt 0:00:00]} 6. c4 {[%emt 0:00:33]} g6 {[%emt 0:00:03]} 7. Be2 {[%emt 0:05:53]} Be6 {[%emt 0:02:14]} 8. O-O {[%emt 0:05:16]} a6 {[%emt 0:05:29]} 9. N5c3 {[%emt 0:02:40]} Nf6 {[%emt 0:00:18]} 10. Be3 {[%emt 0:05:33]} Bg7 {[%emt 0:01:05]} 11. Nd5 {[%emt 0:11:02]} O-O {[%emt 0:02:52]} 12. Nbc3 {[%emt 0:14:38]} Bxd5 {[%emt 0:02:26]} 13. cxd5 {[%emt 0:01:22]} Nd4 {[%emt 0:03:09]} 14. Bd3 {[%emt 0:03:03]} Qb6 {[%emt 0:11:56]} 15. Ne2 {[%emt 0:16:37]} Nd7 {[%emt 0:12:06]} 16. Qd2 {[%emt 0:02:59]} Nc5 {[%emt 0:05:34]} 17. Rac1 {[%emt 0:06:35]} Nxd3 {[%emt 0:26:23]} 18. Qxd3 {[%emt 0:04:03]} Qb5 {[%emt 0:00:17]} 19. Qxb5 {[%emt 0:11:17]} axb5 {[%emt 0:00:36]} 20. Nxd4 {[%emt 0:00:06]} exd4 {[%emt 0:00:06]} 21. Bf4 {[%emt 0:00:02]} Rfd8 {[%emt 0:05:44]} 22. a3 {[%emt 0:07:11]} d3 {[%emt 0:00:07]} 23. Rcd1 {[%emt 0:00:58]} Bxb2 {[%emt 0:05:32]} 24. Rxd3 {[%emt 0:00:07]} Rxa3 {[%emt 0:05:53]} 25. Rxa3 {[%emt 0:00:04]} Bxa3 {[%emt 0:00:04]} 26. Rb1 {[%emt 0:00:05]} Bc5 {[%emt 0:00:07]} 27. Rxb5 {[%emt 0:01:15]} Re8 {[%emt 0:00:20]} 28. Rxb7 {[%emt 0:01:43]} Rxe4 {[%emt 0:00:09]} 29. g3 {[%emt 0:00:09]} h5 {[%emt 0:04:10]} 30. Rd7 {[%emt 0:00:55]} Re1+ {[%emt 0:02:55]} 31. Kg2 {[%emt 0:00:03]} Re2 {[%emt 0:00:06]} 32. Bxd6 {[%emt 0:00:10]} Rxf2+ {[%emt 0:00:03]} 33. Kh1 {[%emt 0:00:36]} Bxd6 {[%emt 0:00:44]} 34. Rxd6 {[%emt 0:00:04]} Rd2 {[%emt 0:00:12]} 35. h4 {[%emt 0:00:56]} Kf8 {[%emt 0:00:13]} 36. Rd7 {[%emt 0:00:07]} Ke8 {[%emt 0:00:05]} 37. Ra7 {[%emt 0:00:03]} Rxd5 {[%emt 0:00:04]} 38. Kg2 {[%emt 0:00:03]} Kf8 {[%emt 0:00:33]} 39. Kf3 {[%emt 0:00:07]} Rd4 {[%emt 0:00:36]} 40. Rb7 {[%emt 0:00:08]} Kg7 {[%emt 0:00:03]} 41. Rb6 {[%emt 0:30:25]} Ra4 {[%emt 0:30:09]} 42. Rc6 {[%emt 0:00:07]} Ra5 {[%emt 0:00:06]} 43. Rb6 {[%emt 0:00:25]} Rf5+ {[%emt 0:00:18]} 44. Kg2 {[%emt 0:00:06]} Rf6 {[%emt 0:00:03]} 45. Rb7 {[%emt 0:00:04]} Ra6 {[%emt 0:00:04]} 46. Kf3 {[%emt 0:00:07]} Kf6 {[%emt 0:00:02]} 47. Rc7 {[%emt 0:00:31]} Ke6 {[%emt 0:00:24]} 48. Rb7 {[%emt 0:00:54]} Ra5 {[%emt 0:00:03]} 49. Rb6+ {[%emt 0:00:52]} Kf5 {[%emt 0:00:06]} 50. Rb3 {[%emt 0:00:03]} f6 {[%emt 0:00:29]} 51. Rc3 {[%emt 0:00:04]} g5 {[%emt 0:00:05]} 52. hxg5 {[%emt 0:00:10]} fxg5 {[%emt 0:00:04]} 53. g4+ {[%emt 0:00:43]} hxg4+ {[%emt 0:00:05]} 54. Kg3 {[%emt 0:00:03]} Ke4 {[%emt 0:00:17]} 55. Kxg4 {[%emt 0:00:08]} Kd4 {[%emt 0:00:04]} 56. Rc8 {[%emt 0:00:12]} Rc5 {[%emt 0:00:02]} 57. Rxc5 {[%emt 0:00:05]} Kxc5 {[%emt 0:00:02]} 58. Kxg5 {[%emt 0:00:06]} 1/2-1/2

[Event "DSB-Kader-Challenge 2021"]
[Site "Magdeburg"]
[Date "2021.04.08"]
[Round "5.4"]
[White "Wagner, Dennis"]
[Black "Heimann, Andreas"]
[Result "1/2-1/2"]
[ECO "D40"]
[WhiteElo "2581"]
[BlackElo "2606"]
[Annotator "ChessBase"]
[PlyCount "80"]
[EventDate "2021.04.05"]
[EventType "tourn"]
[EventCountry "GER"]
[SourceTitle "playchess.com"]
[Source "ChessBase"]
[SourceQuality "1"]
[TimeControl "40/5400+30:1800+30"]

1. d4 {[%emt 0:00:00]} d5 {[%emt 0:00:00]} 2. c4 {[%emt 0:00:00]} e6 {[%emt 0:00:00]} 3. Nf3 {[%emt 0:00:00]} Nf6 {[%emt 0:00:00]} 4. Nc3 {[%emt 0:00:09]} c5 {[%emt 0:00:00]} 5. e3 {[%emt 0:01:51]} a6 {[%emt 0:00:31]} 6. cxd5 {[%emt 0:00:35]} exd5 {[%emt 0:00:09]} 7. b3 {[%emt 0:01:54]} cxd4 {[%emt 0:16:07]} 8. Nxd4 {[%emt 0:04:56]} Bb4 {[%emt 0:00:06]} 9. Bd2 {[%emt 0:03:36]} Nc6 {[%emt 0:00:14]} 10. Nxc6 {[%emt 0:02:40]} bxc6 {[%emt 0:00:19]} 11. Bd3 {[%emt 0:13:49]} Ng4 {[%emt 0:07:35]} 12. Ne2 {[%emt 0:08:34]} Qh4 {[%emt 0:17:22]} 13. Ng3 {[%emt 0:32:39]} Nxf2 {[%emt 0:05:40]} 14. Kxf2 {[%emt 0:00:05]} Bxd2 {[%emt 0:00:05]} 15. Qxd2 {[%emt 0:00:06]} Qf6+ {[%emt 0:00:25]} 16. Bf5 {[%emt 0:00:04]} Bxf5 {[%emt 0:01:09]} 17. Qd4 {[%emt 0:00:05]} Qxd4 {[%emt 0:15:20]} 18. exd4 {[%emt 0:00:02]} Bg6 {[%emt 0:03:33]} 19. h4 {[%emt 0:05:04]} O-O-O {[%emt 0:05:56]} 20. Rhe1 {[%emt 0:06:28]} Rhe8 {[%emt 0:03:17]} 21. Rac1 {[%emt 0:01:34]} Kc7 {[%emt 0:01:56]} 22. Rxe8 {[%emt 0:03:45]} Rxe8 {[%emt 0:00:05]} 23. Rc3 {[%emt 0:02:34]} Kd6 {[%emt 0:06:48]} 24. Re3 {[%emt 0:04:11]} Re6 {[%emt 0:00:31]} 25. Rxe6+ {[%emt 0:02:08]} fxe6 {[%emt 0:04:53]} 26. b4 {[%emt 0:00:11]} Be4 {[%emt 0:05:15]} 27. Nh5 {[%emt 0:00:21]} e5 {[%emt 0:00:51]} 28. Ke3 {[%emt 0:00:02]} Bxg2 {[%emt 0:03:45]} 29. Nxg7 {[%emt 0:00:05]} Bh3 {[%emt 0:00:37]} 30. Ne8+ {[%emt 0:02:13]} Ke7 {[%emt 0:01:09]} 31. Nc7 {[%emt 0:00:04]} Bc8 {[%emt 0:00:54]} 32. Na8 {[%emt 0:03:18]} Kd6 {[%emt 0:00:40]} 33. Nb6 {[%emt 0:00:41]} Bh3 {[%emt 0:00:39]} 34. Na4 {[%emt 0:01:01]} Bf1 {[%emt 0:00:14]} 35. Nc5 {[%emt 0:00:03]} h6 {[%emt 0:00:28]} 36. a4 {[%emt 0:01:35]} Bc4 {[%emt 0:00:24]} 37. Nb7+ {[%emt 0:00:52]} Kc7 {[%emt 0:00:37]} 38. Nc5 {[%emt 0:00:10]} Kd6 {[%emt 0:00:15]} 39. Nb7+ {[%emt 0:00:05]} Kc7 {[%emt 0:00:52]} 40. Nc5 {[%emt 0:00:04]} Kd6 {[%emt 0:00:38]} 1/2-1/2

[Event "DSB-Kader-Challenge 2021"]
[Site "Magdeburg"]
[Date "2021.04.09"]
[Round "7.2"]
[White "Engel, Luis"]
[Black "Svane, Frederik"]
[Result "1-0"]
[ECO "B06"]
[WhiteElo "2553"]
[BlackElo "2421"]
[Annotator "ChessBase"]
[PlyCount "95"]
[EventDate "2021.04.05"]
[EventType "tourn"]
[EventCountry "GER"]
[SourceTitle "playchess.com"]
[Source "ChessBase"]
[SourceQuality "1"]
[TimeControl "40/5400+30:1800+30"]

1. e4 {[%emt 0:00:00]} c5 {[%emt 0:00:00]} 2. Nf3 {[%emt 0:00:00]} g6 {[%emt 0:00:00]} 3. c3 {[%emt 0:00:00]} d5 {[%emt 0:00:00]} 4. exd5 {[%emt 0:00:00]} Qxd5 {[%emt 0:00:00]} 5. d4 {[%emt 0:00:00]} Bg7 {[%emt 0:00:00]} 6. Be2 {[%emt 0:00:00]} cxd4 {[%emt 0:00:03]} 7. cxd4 {[%emt 0:00:05]} Nf6 {[%emt 0:00:03]} 8. Nc3 {[%emt 0:00:08]} Qd6 {[%emt 0:00:06]} 9. O-O {[%emt 0:02:30]} O-O {[%emt 0:00:17]} 10. Bg5 {[%emt 0:03:21]} Be6 {[%emt 0:26:39]} 11. Rc1 {[%emt 0:11:13]} Nbd7 {[%emt 0:02:16]} 12. Nb5 {[%emt 0:09:34]} Qb6 {[%emt 0:00:06]} 13. Nc7 {[%emt 0:01:05]} Rac8 {[%emt 0:00:13]} 14. Nxe6 {[%emt 0:00:09]} Qxe6 {[%emt 0:00:10]} 15. b3 {[%emt 0:02:43]} Rxc1 {[%emt 0:07:12]} 16. Bxc1 {[%emt 0:00:08]} Nd5 {[%emt 0:04:12]} 17. Bc4 {[%emt 0:05:56]} N7b6 {[%emt 0:00:52]} 18. Bd3 {[%emt 0:04:04]} Rd8 {[%emt 0:05:02]} 19. Qd2 {[%emt 0:03:16]} Qd6 {[%emt 0:07:05]} 20. Qa5 {[%emt 0:02:48]} Qb8 {[%emt 0:01:55]} 21. Re1 {[%emt 0:08:04]} e6 {[%emt 0:05:32]} 22. g3 {[%emt 0:02:59]} Ne7 {[%emt 0:11:12]} 23. Bf4 {[%emt 0:02:07]} Qa8 {[%emt 0:00:05]} 24. Be4 {[%emt 0:06:12]} Nbd5 {[%emt 0:06:21]} 25. Bg5 {[%emt 0:01:39]} Nc6 {[%emt 0:00:08]} 26. Qd2 {[%emt 0:04:11]} Rd7 {[%emt 0:00:21]} 27. Rd1 {[%emt 0:04:12]} Qf8 {[%emt 0:01:32]} 28. h4 {[%emt 0:02:33]} Qb4 {[%emt 0:03:04]} 29. Qc2 {[%emt 0:03:08]} h6 {[%emt 0:09:49]} 30. Bc1 {[%emt 0:02:48]} Nce7 {[%emt 0:03:13]} 31. Bb2 {[%emt 0:01:38]} Qa5 {[%emt 0:00:53]} 32. a3 {[%emt 0:01:02]} Rc7 {[%emt 0:01:38]} 33. Qe2 {[%emt 0:02:07]} Nc3 {[%emt 0:00:56]} 34. Qe1 {[%emt 0:00:56]} f5 {[%emt 0:03:36]} 35. Bd3 {[%emt 0:04:15]} Qd5 {[%emt 0:00:50]} 36. Bc4 {[%emt 0:01:39]} Qxf3 {[%emt 0:00:22]} 37. Bxc3 {[%emt 0:00:08]} Kh7 {[%emt 0:01:34]} 38. Rd3 {[%emt 0:01:12]} Qc6 {[%emt 0:01:10]} 39. Re3 {[%emt 0:01:29]} b5 {[%emt 0:00:30]} 40. Rxe6 {[%emt 0:02:05]} Qb7 {[%emt 0:00:31]} 41. Bf1 {[%emt 0:33:42]} h5 {[%emt 0:02:36]} 42. Ba5 {[%emt 0:00:00]} Rd7 {[%emt 0:00:02]} 43. Bg2 {[%emt 0:00:00]} Nd5 {[%emt 0:00:07]} 44. Qc1 {[%emt 0:00:00]} Bh6 {[%emt 0:04:35]} 45. Qc5 {[%emt 0:00:00]} f4 {[%emt 0:00:03]} 46. Rd6 {[%emt 0:00:00]} fxg3 {[%emt 0:00:06]} 47. Bxd5 {[%emt 0:00:00]} gxf2+ {[%emt 0:00:10]} 48. Kf1 {[%emt 0:00:00]} 1-0

[Event "DSB-Kader-Challenge 2021"]
[Site "Magdeburg"]
[Date "2021.04.09"]
[Round "7.3"]
[White "Wagner, Dennis"]
[Black "Kollars, Dmitrij"]
[Result "0-1"]
[ECO "C78"]
[WhiteElo "2581"]
[BlackElo "2598"]
[Annotator "ChessBase"]
[PlyCount "112"]
[EventDate "2021.04.05"]
[EventType "tourn"]
[EventCountry "GER"]
[SourceTitle "playchess.com"]
[Source "ChessBase"]
[SourceQuality "1"]
[TimeControl "40/5400+30:1800+30"]

1. e4 {[%emt 0:00:00]} e5 {[%emt 0:04:07]} 2. Nf3 {[%emt 0:00:00]} Nc6 {[%emt 0:00:03]} 3. Bb5 {[%emt 0:00:00]} a6 {[%emt 0:00:07]} 4. Ba4 {[%emt 0:00:00]} Nf6 {[%emt 0:00:08]} 5. O-O {[%emt 0:00:00]} b5 {[%emt 0:00:30]} 6. Bb3 {[%emt 0:00:00]} Bc5 {[%emt 0:00:12]} 7. c3 {[%emt 0:00:53]} d6 {[%emt 0:00:34]} 8. a4 {[%emt 0:00:37]} Bb7 {[%emt 0:00:29]} 9. d4 {[%emt 0:00:33]} Bb6 {[%emt 0:00:05]} 10. Re1 {[%emt 0:00:10]} O-O {[%emt 0:00:24]} 11. Bg5 {[%emt 0:00:44]} h6 {[%emt 0:00:43]} 12. Bh4 {[%emt 0:00:04]} b4 {[%emt 0:00:12]} 13. Qd3 {[%emt 0:17:40]} Na5 {[%emt 0:00:27]} 14. Bc2 {[%emt 0:28:02]} c5 {[%emt 0:00:42]} 15. cxb4 {[%emt 0:01:26]} cxb4 {[%emt 0:00:43]} 16. Nbd2 {[%emt 0:00:35]} Nc6 {[%emt 0:04:29]} 17. Nb3 {[%emt 0:03:28]} a5 {[%emt 0:11:21]} 18. Rac1 {[%emt 0:02:02]} Ba6 {[%emt 0:04:17]} 19. Qd2 {[%emt 0:08:14]} Rc8 {[%emt 0:12:06]} 20. Bd3 {[%emt 0:03:00]} Bb7 {[%emt 0:00:18]} 21. d5 {[%emt 0:07:47]} Nb8 {[%emt 0:03:17]} 22. Bb5 {[%emt 0:01:39]} Qe7 {[%emt 0:01:31]} 23. Qd3 {[%emt 0:04:24]} g5 {[%emt 0:08:01]} 24. Bg3 {[%emt 0:03:00]} Nh5 {[%emt 0:15:15]} 25. Nfd2 {[%emt 0:00:28]} f5 {[%emt 0:00:49]} 26. exf5 {[%emt 0:02:09]} Rxc1 {[%emt 0:00:34]} 27. Rxc1 {[%emt 0:01:07]} Bc8 {[%emt 0:00:26]} 28. Rxc8 {[%emt 0:07:48]} Rxc8 {[%emt 0:00:03]} 29. Nc4 {[%emt 0:00:30]} Bc7 {[%emt 0:03:11]} 30. Nbd2 {[%emt 0:06:21]} Nd7 {[%emt 0:08:50]} 31. Ne4 {[%emt 0:01:16]} Rf8 {[%emt 0:01:08]} 32. h3 {[%emt 0:01:18]} Ndf6 {[%emt 0:01:38]} 33. Kh2 {[%emt 0:00:34]} Nxe4 {[%emt 0:04:35]} 34. Qxe4 {[%emt 0:00:02]} Ng7 {[%emt 0:00:06]} 35. Ne3 {[%emt 0:00:29]} h5 {[%emt 0:01:02]} 36. f3 {[%emt 0:00:40]} Bb6 {[%emt 0:01:08]} 37. Bf2 {[%emt 0:00:51]} Bxe3 {[%emt 0:02:01]} 38. Bxe3 {[%emt 0:00:01]} Nxf5 {[%emt 0:00:06]} 39. Bb6 {[%emt 0:00:22]} Qg7 {[%emt 0:04:33]} 40. Bxa5 {[%emt 0:00:44]} Nd4 {[%emt 0:00:48]} 41. Bd3 {[%emt 0:08:32]} g4 {[%emt 0:05:21]} 42. fxg4 {[%emt 0:09:39]} Rf4 {[%emt 0:03:41]} 43. Qe3 {[%emt 0:04:23]} hxg4 {[%emt 0:01:16]} 44. Bxb4 {[%emt 0:00:16]} Nf3+ {[%emt 0:04:59]} 45. gxf3 {[%emt 0:00:10]} gxf3 {[%emt 0:00:18]} 46. Bf1 {[%emt 0:05:25]} f2 {[%emt 0:03:12]} 47. Qg3 {[%emt 0:00:11]} Qxg3+ {[%emt 0:00:25]} 48. Kxg3 {[%emt 0:00:01]} Rxb4 {[%emt 0:00:07]} 49. Kxf2 {[%emt 0:00:38]} Rxa4 {[%emt 0:02:29]} 50. b3 {[%emt 0:00:25]} Rf4+ {[%emt 0:01:21]} 51. Kg2 {[%emt 0:01:36]} Kg7 {[%emt 0:00:55]} 52. Bd3 {[%emt 0:00:37]} Kf6 {[%emt 0:03:29]} 53. Kg3 {[%emt 0:00:04]} Kg5 {[%emt 0:00:10]} 54. Be2 {[%emt 0:02:08]} Re4 {[%emt 0:00:24]} 55. Kf3 {[%emt 0:00:05]} Rd4 {[%emt 0:00:05]} 56. Bc4 {[%emt 0:00:04]} Kh4 {[%emt 0:00:16]} 0-1